fUST/lending_fUST_20250605
["ID","MTS","AMOUNT","RATE_DAILY","PERIOD"]
[364266743,1749052831202,200.0,0.00024608,120]
[364266745,1749052879206,6080.05807941,0.00015506,2]
[364266746,1749052879231,8302.626,0.00015506,2]
[364266747,1749052879256,8302.626,0.00015506,2]
[364266748,1749052879279,2214.68992059,0.00015506,2]
[364266750,1749052894502,5340.8383734,0.00015712,2]
[364266752,1749052925840,154.22519529,6.8e-07,2]
[364266753,1749052931254,592.87251072,0.00015412,2]
[364266754,1749052931277,8302.626,0.00015412,2]
[364266755,1749052931299,115.19471338,0.00015412,2]
[364266757,1749052951230,200.0,0.00023992,120]
[364266758,1749053071309,200.0,0.00023793,120]
[364266759,1749053131527,200.0,0.00023426,120]
[364266762,1749053154520,187.26286205,0.00015942,2]
[364266763,1749053226437,154.22519529,6.8e-07,2]
[364266768,1749053250755,200.0,0.00024619,120]
[364266769,1749053270652,240.913583,0.00015643,2]
[364266771,1749053294604,500.7147866,0.00015643,2]
[364266772,1749053310919,200.0,0.00024766,120]
[364266825,1749053430741,200.0,0.00024491,120]
[364266884,1749053432748,-300.0,0.00016437,2]
[364266886,1749053432758,-236.82209359,0.00016437,2]
[364266888,1749053432772,-63.17790641,0.00016437,2]
[364266891,1749053432782,-300.0,0.00016437,2]
[364266894,1749053432791,-300.0,0.00016437,2]
[364266897,1749053432801,-300.0,0.00016437,2]
[364266899,1749053432811,-1200.0,0.00016437,2]
[364266900,1749053432820,-440.0,0.00016438,2]
[364266901,1749053432831,-440.0,0.00016438,2]
[364266902,1749053432840,-440.0,0.00016438,2]
[364266903,1749053432850,-430.0,0.00016438,2]
[364266904,1749053432860,-430.0,0.00016438,2]
[364266905,1749053432870,-430.0,0.00016438,2]
[364266907,1749053432879,-430.0,0.00016438,2]
[364266909,1749053432889,-430.0,0.00016438,2]
[364266911,1749053432899,-430.0,0.00016438,2]
[364266913,1749053432908,-430.0,0.00016438,2]
[364266915,1749053432918,-536.80791853,0.00016438,2]
[364266917,1749053432928,-382.77796731,0.00016438,2]
[364266919,1749053432938,-430.0,0.00016438,2]
[364266921,1749053432947,-430.0,0.00016438,2]
[364266923,1749053432957,-430.0,0.00016438,2]
[364266925,1749053432966,-430.0,0.00016438,2]
[364266927,1749053432976,-440.0,0.00016438,2]
[364266929,1749053432986,-494.66,0.00016438,2]
[364266931,1749053432996,-440.0,0.00016438,2]
[364266933,1749053433006,-430.0,0.00016438,2]
[364266935,1749053433016,-430.0,0.00016438,2]
[364266937,1749053433026,-440.0,0.00016438,2]
[364266939,1749053433036,-430.0,0.00016438,2]
[364266941,1749053433045,-560.99225664,0.00016438,2]
[364266943,1749053433055,-430.0,0.00016438,2]
[364266945,1749053433065,-152.52403429,0.00016438,2]
[364266947,1749053433075,-430.0,0.00016438,2]
[364266950,1749053433085,-430.0,0.00016438,2]
[364266952,1749053433095,-430.0,0.00016438,2]
[364266954,1749053433105,-400.0,0.00016438,2]
[364266956,1749053433115,-430.0,0.00016438,2]
[364266958,1749053433125,-430.61403169,0.00016438,2]
[364266960,1749053433134,-381.91660989,0.00016438,2]
[364266962,1749053433144,-430.0,0.00016438,2]
[364266964,1749053433154,-440.0,0.00016438,2]
[364266965,1749053433164,-430.0,0.00016438,2]
[364266967,1749053433175,-430.0,0.00016438,2]
[364266969,1749053433186,-430.0,0.00016438,2]
[364266971,1749053433196,-430.0,0.00016438,2]
[364266973,1749053433205,-522.02060256,0.00016438,2]
[364266975,1749053433215,-440.0,0.00016438,2]
[364266977,1749053433225,-440.0,0.00016438,2]
[364266978,1749053433235,-430.0,0.00016438,2]
[364266979,1749053433246,-430.0,0.00016438,2]
[364266980,1749053433256,-430.0,0.00016438,2]
[364266981,1749053433266,-430.0,0.00016438,2]
[364266982,1749053433276,-440.0,0.00016438,2]
[364266983,1749053433286,-430.0,0.00016438,2]
[364266984,1749053433300,-430.0,0.00016438,2]
[364266985,1749053433310,-430.0,0.00016438,2]
[364266986,1749053433320,-430.0,0.00016438,2]
[364266987,1749053433331,-430.0,0.00016438,2]
[364266988,1749053433341,-440.0,0.00016438,2]
[364266989,1749053433351,-430.0,0.00016438,2]
[364266990,1749053433361,-430.0,0.00016438,2]
[364266991,1749053433371,-430.0,0.00016438,2]
[364266992,1749053433380,-442.57542213,0.00016438,2]
[364266993,1749053433390,-275.13309956,0.00016438,2]
[364266994,1749053433401,-430.0,0.00016438,2]
[364266995,1749053433411,-430.0,0.00016438,2]
[364266996,1749053433421,-440.0,0.00016438,2]
[364266997,1749053433432,-430.0,0.00016438,2]
[364266998,1749053433442,-430.0,0.00016438,2]
[364266999,1749053433451,-146.71141729,0.00016438,2]
[364267001,1749053433465,-283.28858271,0.00016438,2]
[364267003,1749053433475,-396.57464329,0.00016438,2]
[364267005,1749053433489,-43.42535671,0.00016438,2]
[364267007,1749053433498,-306.92071621,0.00016438,2]
[364267009,1749053433508,-430.0,0.00016438,2]
[364267010,1749053433518,-430.0,0.00016438,2]
[364267011,1749053433528,-430.0,0.00016438,2]
[364267015,1749053433538,-440.0,0.00016438,2]
[364267017,1749053433718,-430.0,0.00016438,2]
[364267018,1749053433728,-440.0,0.00016438,2]
[364267019,1749053433739,-490.0,0.00016438,2]
[364267020,1749053433749,-186.44314004,0.00016438,2]
[364267021,1749053433758,-430.0,0.00016438,2]
[364267022,1749053433769,-430.0,0.00016438,2]
[364267023,1749053433779,-440.0,0.00016438,2]
[364267024,1749053433788,-500.0,0.00016438,2]
[364267025,1749053433797,-500.0,0.00016438,2]
[364267026,1749053433807,-440.0,0.00016438,2]
[364267027,1749053433818,-336.82939588,0.00016438,2]
[364267028,1749053433828,-440.0,0.00016438,2]
[364267029,1749053433838,-440.0,0.00016438,2]
[364267030,1749053433848,-430.0,0.00016438,2]
[364267031,1749053433859,-440.0,0.00016438,2]
[364267032,1749053433870,-430.0,0.00016438,2]
[364267033,1749053433880,-430.0,0.00016438,2]
[364267034,1749053433889,-440.0,0.00016438,2]
[364267035,1749053433899,-440.0,0.00016438,2]
[364267036,1749053433908,-430.0,0.00016438,2]
[364267037,1749053433918,-440.0,0.00016438,2]
[364267038,1749053433928,-430.0,0.00016438,2]
[364267039,1749053433938,-440.0,0.00016438,2]
[364267040,1749053433948,-323.99330728,0.00016438,2]
[364267041,1749053433958,-440.0,0.00016438,2]
[364267042,1749053433968,-485.79,0.00016438,2]
[364267043,1749053433978,-430.0,0.00016438,2]
[364267044,1749053433988,-440.0,0.00016438,2]
[364267045,1749053433999,-430.0,0.00016438,2]
[364267046,1749053434008,-440.0,0.00016438,2]
[364267047,1749053434018,-440.0,0.00016438,2]
[364267048,1749053434028,-440.0,0.00016438,2]
[364267049,1749053434038,-431.55892203,0.00016438,2]
[364267050,1749053434048,-440.0,0.00016438,2]
[364267051,1749053434058,-430.0,0.00016438,2]
[364267052,1749053434067,-440.0,0.00016438,2]
[364267053,1749053434077,-440.0,0.00016438,2]
[364267054,1749053434087,-430.0,0.00016438,2]
[364267055,1749053434097,-430.0,0.00016438,2]
[364267056,1749053434107,-430.0,0.00016438,2]
[364267057,1749053434117,-472.87,0.00016438,2]
[364267058,1749053434127,-430.0,0.00016438,2]
[364267059,1749053434136,-430.0,0.00016438,2]
[364267060,1749053434145,-440.0,0.00016438,2]
[364267061,1749053434155,-440.0,0.00016438,2]
[364267062,1749053434164,-430.0,0.00016438,2]
[364267063,1749053434176,-210.12001961,0.00016438,2]
[364267064,1749053434185,-430.0,0.00016438,2]
[364267065,1749053434195,-430.0,0.00016438,2]
[364267066,1749053434204,-440.0,0.00016438,2]
[364267067,1749053434213,-430.0,0.00016438,2]
[364267068,1749053434222,-440.0,0.00016438,2]
[364267069,1749053434232,-440.0,0.00016438,2]
[364267070,1749053434241,-430.0,0.00016438,2]
[364267071,1749053434251,-440.0,0.00016438,2]
[364267072,1749053434260,-440.0,0.00016438,2]
[364267073,1749053434269,-585.14,0.00016438,2]
[364267074,1749053434279,-432.68708399,0.00016438,2]
[364267075,1749053434289,-336.81026059,0.00016438,2]
[364267076,1749053434298,-440.0,0.00016438,2]
[364267077,1749053434308,-440.0,0.00016438,2]
[364267078,1749053434318,-430.0,0.00016438,2]
[364267079,1749053434327,-440.0,0.00016438,2]
[364267080,1749053434337,-432.6808908,0.00016632,2]
[364267081,1749053434347,-188.12906042,0.00016712,2]
[364267082,1749053434357,-440.0,0.00016712,2]
[364267083,1749053434366,-361.02,0.00016712,2]
[364267084,1749053434375,-440.0,0.00016712,2]
[364267085,1749053434384,-440.0,0.00016712,2]
[364267086,1749053434394,-420.0,0.00016712,2]
[364267087,1749053434403,-552.65960666,0.00016712,2]
[364267088,1749053434413,-414.74852935,0.00016712,2]
[364267089,1749053434423,-420.0,0.00016712,2]
[364267090,1749053434434,-420.0,0.00016712,2]
[364267091,1749053434443,-420.0,0.00016712,2]
[364267092,1749053434453,-440.0,0.00016712,2]
[364267093,1749053434462,-420.0,0.00016712,2]
[364267094,1749053434472,-420.0,0.00016712,2]
[364267095,1749053434482,-247.32850324,0.00016712,2]
[364267096,1749053434492,-420.0,0.00016712,2]
[364267097,1749053434503,-420.0,0.00016712,2]
[364267098,1749053434514,-440.0,0.00016712,2]
[364267099,1749053434525,-440.0,0.00016712,2]
[364267100,1749053434535,-420.0,0.00016712,2]
[364267101,1749053434544,-420.0,0.00016712,2]
[364267102,1749053434554,-420.0,0.00016712,2]
[364267103,1749053434563,-420.0,0.00016712,2]
[364267104,1749053434573,-420.0,0.00016712,2]
[364267105,1749053434584,-420.0,0.00016712,2]
[364267106,1749053434594,-485.79,0.00016712,2]
[364267107,1749053434613,-440.0,0.00016712,2]
[364267108,1749053434624,-420.0,0.00016712,2]
[364267109,1749053434634,-420.0,0.00016712,2]
[364267110,1749053434644,-420.0,0.00016712,2]
[364267111,1749053434654,-585.0,0.00016712,2]
[364267112,1749053434664,-420.0,0.00016712,2]
[364267113,1749053434675,-223.72119184,0.00016712,2]
[364267171,1749053438765,-332.97942887,0.00016438,2]
[364267173,1749053438779,-77.02057113,0.00016438,2]
[364267175,1749053438789,-196.27880816,0.00016712,2]
[364267177,1749053438798,-472.87,0.00016712,2]
[364267179,1749053438808,-420.0,0.00016712,2]
[364267181,1749053438818,-420.0,0.00016712,2]
[364267183,1749053438828,-440.0,0.00016712,2]
[364267185,1749053438837,-420.0,0.00016712,2]
[364267187,1749053438847,-420.0,0.00016712,2]
[364267189,1749053438857,-430.0,0.00016712,2]
[364267191,1749053438866,-420.0,0.00016712,2]
[364267193,1749053438876,-420.0,0.00016712,2]
[364267195,1749053438886,-558.82,0.00016712,2]
[364267197,1749053438896,-420.0,0.00016712,2]
[364267199,1749053438906,-430.0,0.00016986,2]
[364267201,1749053438915,-440.0,0.00016986,2]
[364267203,1749053438925,-440.0,0.00016986,2]
[364267205,1749053438935,-579.68,0.00016986,2]
[364267207,1749053438945,-440.0,0.00016986,2]
[364267209,1749053438954,-485.79,0.00016986,2]
[364267211,1749053438964,-440.0,0.00016986,2]
[364267213,1749053438974,-472.87,0.00016986,2]
[364267215,1749053438984,-186.36,0.00016986,2]
[364267217,1749053438993,-440.0,0.0001726,2]
[364267219,1749053439003,-440.0,0.0001726,2]
[364267221,1749053439012,-440.0,0.0001726,2]
[364267223,1749053439022,-485.79,0.0001726,2]
[364267225,1749053439033,-440.0,0.0001726,2]
[364267227,1749053439043,-472.87,0.0001726,2]
[364267229,1749053439053,-6385.88032249,0.00017451,2]
[364267231,1749053439063,-440.0,0.00017533,2]
[364267233,1749053439074,-430.0,0.00017533,2]
[364267235,1749053439084,-440.0,0.00017533,2]
[364267237,1749053439093,-440.0,0.00017533,2]
[364267239,1749053439103,-430.0,0.00017533,2]
[364267241,1749053439113,-210.96170617,0.00017533,2]
[364267243,1749053439122,-430.0,0.00017533,2]
[364267245,1749053439131,-440.0,0.00017533,2]
[364267247,1749053439141,-440.0,0.00017533,2]
[364267249,1749053439150,-545.58,0.00017533,2]
[364267251,1749053439159,-440.0,0.00017533,2]
[364267253,1749053439169,-430.0,0.00017533,2]
[364267255,1749053439178,-440.0,0.00017533,2]
[364267256,1749053439188,-440.0,0.00017533,2]
[364267258,1749053439197,-430.0,0.00017533,2]
[364267260,1749053439207,-430.0,0.00017533,2]
[364267262,1749053439217,-440.0,0.00017534,2]
[364267265,1749053439227,-440.0,0.00017534,2]
[364267267,1749053439237,-440.0,0.00017534,2]
[364267269,1749053439246,-485.79,0.00017534,2]
[364267270,1749053439255,-370.38,0.00017534,2]
[364267273,1749053439265,-472.87,0.00017534,2]
[364267275,1749053439274,-440.0,0.00017807,2]
[364267276,1749053439283,-440.0,0.00017807,2]
[364267278,1749053439294,-420.0,0.00017807,2]
[364267280,1749053439303,-420.0,0.00017807,2]
[364267281,1749053439313,-420.0,0.00017807,2]
[364267282,1749053439323,-420.0,0.00017807,2]
[364267283,1749053439332,-420.0,0.00017807,2]
[364267284,1749053439342,-440.0,0.00017807,2]
[364267285,1749053439351,-365.92584016,0.00017808,2]
[364267286,1749053439362,-440.0,0.00017808,2]
[364267287,1749053439371,-440.0,0.00017808,2]
[364267288,1749053439381,-485.79,0.00017808,2]
[364267289,1749053439390,-472.87,0.00017808,2]
[364267290,1749053439400,-330.67608938,0.000179,2]
[364267291,1749053439410,-319.0,0.00017963,2]
[364267292,1749053439420,-420.0,0.00017963,2]
[364267293,1749053439430,-440.0,0.00018081,2]
[364267294,1749053439440,-440.0,0.00018081,2]
[364267295,1749053439450,-440.0,0.00018081,2]
[364267296,1749053439460,-390.0,0.00018082,2]
[364267297,1749053439470,-538.64,0.00018082,2]
[364267298,1749053439479,-485.79,0.00018082,2]
[364267299,1749053439488,-472.87,0.00018082,2]
[364267300,1749053439499,-330.67608922,0.00018141,2]
[364267301,1749053439509,-526.89014251,0.00018355,2]
[364267302,1749053439518,-218.9,0.00018355,2]
[364267303,1749053439528,-440.0,0.00018355,2]
[364267304,1749053439539,-485.79,0.00018356,2]
[364267306,1749053439549,-472.87,0.00018356,2]
[364267307,1749053439558,-330.67608922,0.00018383,2]
[364267308,1749053439568,-330.67608922,0.00018624,2]
[364267321,1749053439702,-440.0,0.00018629,2]
[364267323,1749053439713,-485.79,0.0001863,2]
[364267325,1749053439722,-472.87,0.0001863,2]
[364267327,1749053439733,-838.22891754,0.00018807,2]
[364267329,1749053439743,-330.67608922,0.00018866,2]
[364267331,1749053439754,-5000.0,0.000189,3]
[364267333,1749053439764,-1096.68410151,0.000189,2]
[364267335,1749053439778,-440.0,0.00018903,2]
[364267337,1749053439789,-485.79,0.00018904,2]
[364267339,1749053439798,-472.87,0.00018904,2]
[364267341,1749053439808,-423.69433488,0.00018915,2]
[364267343,1749053439818,-160.0,0.00018915,2]
[364267345,1749053439827,-160.0,0.00018915,2]
[364267347,1749053439836,-160.0,0.00018919,2]
[364267349,1749053439845,-229.45591648,0.00018919,2]
[364267351,1749053439854,-160.0,0.00018919,2]
[364267352,1749053439863,-842.5625,0.00018919,2]
[364267354,1749053439873,-160.0,0.00018919,2]
[364267356,1749053439882,-356.58,0.00019,2]
[364267358,1749053439892,-330.67608922,0.00019107,2]
[364267360,1749053439901,-440.0,0.00019177,2]
[364267362,1749053439911,-485.79,0.00019178,2]
[364267364,1749053439920,-472.87,0.00019178,2]
[364267366,1749053439930,-172.76327,0.00019178,2]
[364267368,1749053439941,-330.67608922,0.00019348,2]
[364267370,1749053439951,-440.0,0.00019451,2]
[364267372,1749053439960,-485.79,0.00019452,2]
[364267374,1749053439970,-177.7329622,0.00019452,2]
[364267377,1749053439983,-295.1370378,0.00019452,2]
[364267379,1749053439991,-330.67608922,0.0001959,2]
[364267381,1749053440001,-432.0,0.00019631,2]
[364267383,1749053440010,-440.0,0.00019725,2]
[364267385,1749053440020,-485.79,0.00019726,2]
[364267387,1749053440029,-472.87,0.00019726,2]
[364267388,1749053440039,-187.187,0.00019809,2]
[364267390,1749053440048,-330.67608922,0.00019831,2]
[364267393,1749053440059,-440.0,0.00019999,2]
[364267394,1749053440068,-485.79,0.0002,2]
[364267396,1749053440077,-472.87,0.0002,2]
[364267399,1749053440087,-1200.0,0.00020068,2]
[364267400,1749053440096,-330.67608922,0.00020072,2]
[364267402,1749053440106,-186.69441837,0.00020172,2]
[364267405,1749053440117,-36.82740057,0.00020172,2]
[364267407,1749053440126,-485.79,0.00020273,2]
[364267409,1749053440135,-472.87,0.00020273,2]
[364267411,1749053440144,-440.0,0.00020273,2]
[364267412,1749053440154,-330.67608922,0.00020314,3]
[364267415,1749053440163,-485.79,0.00020547,2]
[364267416,1749053440172,-472.87,0.00020547,2]
[364267418,1749053440181,-440.0,0.00020547,2]
[364267420,1749053440191,-330.67608922,0.00020555,3]
[364267422,1749053440200,-662.21,0.000206,2]
[364267424,1749053440209,-1317.85,0.000206,2]
[364267426,1749053440218,-330.67608922,0.00020797,4]
[364267428,1749053440228,-485.79,0.00020821,2]
[364267430,1749053440237,-472.87,0.00020821,2]
[364267432,1749053440246,-310.89221499,0.00020821,2]
[364267434,1749053440255,-330.67608922,0.00021038,4]
[364267436,1749053440264,-485.79,0.00021095,2]
[364267438,1749053440274,-472.87,0.00021095,2]
[364267440,1749053440283,-223.52181891,0.00021131,2]
[364267443,1749053440292,-1144.09025439,0.00021164,2]
[364267447,1749053440308,-160.0,0.00018915,2]
[364267450,1749053440317,-55.90974561,0.00021164,2]
[364267452,1749053440326,-330.67608922,0.00021279,5]
[364267454,1749053440336,-313.81899272,0.00021369,2]
[364267527,1749053441036,-268.89155346,0.00016337,2]
[364267529,1749053441046,-171.97100728,0.00021369,2]
[364267531,1749053441055,-472.87,0.00021369,2]
[364267533,1749053441064,-330.67608922,0.00021521,5]
[364267535,1749053441073,-485.79,0.00021643,2]
[364267537,1749053441083,-472.87,0.00021643,2]
[364267539,1749053441092,-500.0,0.0002175,2]
[364267541,1749053441101,-600.0,0.0002175,2]
[364267543,1749053441110,-500.0,0.0002175,2]
[364267545,1749053441121,-500.0,0.0002175,2]
[364267548,1749053441131,-330.67608922,0.00021762,5]
[364267550,1749053441140,-500.0,0.00021917,2]
[364267552,1749053441149,-485.79,0.00021917,2]
[364267554,1749053441158,-472.87,0.00021917,2]
[364267556,1749053441168,-200.0,0.00022,2]
[364267558,1749053441177,-1000.00000099,0.00022,2]
[364267560,1749053441187,-330.67608922,0.00022003,6]
[364267562,1749053441196,-223.52181891,0.00022091,2]
[364267564,1749053441205,-662.21,0.000221,7]
[364267566,1749053441215,-1317.85,0.000221,7]
[364267568,1749053441224,-485.79,0.00022191,2]
[364267570,1749053441233,-472.87,0.00022191,2]
[364267572,1749053441243,-330.67608922,0.00022245,6]
[364267574,1749053441252,-1200.0,0.0002226,2]
[364267576,1749053441261,-921.44895171,0.00022298,2]
[364267578,1749053441273,-151.9017841,0.00022298,2]
[364267580,1749053441283,-482.39437206,0.00022298,2]
[364268104,1749053446700,-268.89155346,0.00019076,2]
[364268106,1749053446710,-500.0,0.00019175,2]
[364268108,1749053446719,-121.57143916,0.00019175,2]
[364268115,1749053446781,-378.42856084,0.00019175,2]
[364268118,1749053446791,-164.9101268,0.00019175,2]
[364270883,1749053497254,4351.6383,0.00025,30]
[364270884,1749053550848,200.0,0.00024227,120]
[364270886,1749053604652,273.0,0.00024163,120]
[364270889,1749053670771,200.0,0.00023762,120]
[364270891,1749053764223,166.055956,0.00013699,2]
[364270893,1749053791338,200.0,0.00024076,120]
[364270894,1749053850748,200.0,0.00024135,120]
[364270896,1749053910797,200.0,0.00023244,120]
[364270897,1749053971071,6938.25890368,0.00015479,2]
[364270898,1749053971093,8302.626,0.00015479,2]
[364270899,1749053971116,8302.626,0.00015479,2]
[364270900,1749053971138,5975.77134992,0.00015479,2]
[364270901,1749054011290,10000.0,0.00025,30]
[364270902,1749054027564,1115.0,0.00025,30]
[364270903,1749054030725,200.0,0.00022956,120]
[364270904,1749054066589,200.0,0.00025,30]
[364270905,1749054090794,200.0,0.00024395,120]
[364270906,1749054107453,200.0,0.00025,30]
[364270908,1749054169092,196.3040486,0.00015453,2]
[364270909,1749054210726,200.0,0.00023317,120]
[364270910,1749054235680,2130.55060148,0.00015388,2]
[364270911,1749054235709,14424.74262682,0.00015388,2]
[364270916,1749054326677,12548.02505938,0.00025,30]
[364270917,1749054330999,200.0,0.00024706,120]
[364270940,1749054428066,154.22519529,6.8e-07,2]
[364270943,1749054474475,17308.67004663,0.00025,120]
[364270946,1749054510722,200.0,0.00024887,120]
[364270953,1749054523316,1804.19315416,0.00015,2]
[364271057,1749054632990,-196.0,0.00015599,2]
[364271059,1749054633000,-300.0,0.00015599,2]
[364271061,1749054633010,-8700.16541384,0.000156,2]
[364271063,1749054633023,-1729.83458616,0.000156,2]
[364271065,1749054633033,-258.584548,0.00015643,2]
[364271067,1749054633044,-209.16026866,0.00016,2]
[364271069,1749054633053,-765.3183213,0.00016055,2]
[364271071,1749054633063,-169.29125967,0.00016338,2]
[364271073,1749054633073,-213.84803409,0.00016338,2]
[364271075,1749054633082,-430.0,0.00016438,2]
[364271077,1749054633091,-430.0,0.00016438,2]
[364271079,1749054633101,-430.0,0.00016438,2]
[364271081,1749054633111,-485.37,0.00016438,2]
[364271082,1749054633121,-430.0,0.00016438,2]
[364271083,1749054633133,-430.0,0.00016438,2]
[364271084,1749054633144,-430.0,0.00016438,2]
[364271085,1749054633154,-430.0,0.00016438,2]
[364271086,1749054633163,-430.0,0.00016438,2]
[364271087,1749054633174,-430.0,0.00016438,2]
[364271088,1749054633183,-430.0,0.00016438,2]
[364271090,1749054633193,-430.0,0.00016438,2]
[364271092,1749054633204,-430.0,0.00016438,2]
[364271093,1749054633214,-440.0,0.00016438,2]
[364271094,1749054633224,-440.0,0.00016438,2]
[364271095,1749054633233,-440.0,0.00016438,2]
[364271097,1749054633243,-430.0,0.00016438,2]
[364271098,1749054633254,-440.0,0.00016438,2]
[364271100,1749054633264,-430.0,0.00016438,2]
[364271102,1749054633275,-430.0,0.00016438,2]
[364271104,1749054633284,-430.0,0.00016438,2]
[364271106,1749054633294,-440.0,0.00016438,2]
[364271109,1749054633305,-430.0,0.00016438,2]
[364271111,1749054633314,-440.0,0.00016438,2]
[364271112,1749054633324,-430.0,0.00016438,2]
[364271114,1749054633334,-430.0,0.00016438,2]
[364271116,1749054633343,-440.0,0.00016438,2]
[364271117,1749054633354,-440.0,0.00016438,2]
[364271119,1749054633363,-533.64831665,0.00016438,2]
[364271121,1749054633373,-440.0,0.00016438,2]
[364271122,1749054633382,-440.0,0.00016438,2]
[364271123,1749054633392,-495.26,0.00016438,2]
[364271125,1749054633402,-430.0,0.00016438,2]
[364271126,1749054633413,-430.0,0.00016438,2]
[364271127,1749054633422,-440.0,0.00016438,2]
[364271128,1749054633431,-521.04,0.00016438,2]
[364271129,1749054633441,-430.0,0.00016438,2]
[364271130,1749054633450,-430.0,0.00016438,2]
[364271131,1749054633460,-440.0,0.00016438,2]
[364271132,1749054633469,-430.0,0.00016438,2]
[364271133,1749054633479,-375.31237526,0.00016438,2]
[364271134,1749054633554,-54.68762474,0.00016438,2]
[364271135,1749054633564,-430.0,0.00016438,2]
[364271136,1749054633573,-430.0,0.00016438,2]
[364271137,1749054633583,-430.0,0.00016438,2]
[364271138,1749054633592,-440.0,0.00016438,2]
[364271139,1749054633601,-430.0,0.00016438,2]
[364271140,1749054633611,-430.0,0.00016438,2]
[364271141,1749054633621,-440.0,0.00016438,2]
[364271142,1749054633630,-813.17,0.00016438,2]
[364271143,1749054633640,-430.0,0.00016438,2]
[364271144,1749054633650,-532.68279812,0.00016438,2]
[364271145,1749054633659,-440.0,0.00016438,2]
[364271146,1749054633669,-430.0,0.00016438,2]
[364271147,1749054633678,-430.0,0.00016438,2]
[364271148,1749054633688,-440.0,0.00016438,2]
[364271149,1749054633697,-430.0,0.00016438,2]
[364271150,1749054633707,-430.0,0.00016438,2]
[364271151,1749054633716,-500.0,0.00016438,2]
[364271152,1749054633725,-440.0,0.00016438,2]
[364271153,1749054633735,-175.1,0.00016438,2]
[364271154,1749054633744,-440.0,0.00016438,2]
[364271155,1749054633754,-440.0,0.00016438,2]
[364271156,1749054633766,-440.0,0.00016438,2]
[364271157,1749054633776,-440.0,0.00016438,2]
[364271158,1749054633786,-430.0,0.00016438,2]
[364271159,1749054633796,-440.0,0.00016438,2]
[364271160,1749054633806,-430.0,0.00016438,2]
[364271161,1749054633815,-440.0,0.00016438,2]
[364271162,1749054633824,-464.03,0.00016438,2]
[364271163,1749054633834,-1158.49,0.00016438,2]
[364271164,1749054633844,-440.0,0.00016438,2]
[364271165,1749054633854,-430.0,0.00016438,2]
[364271166,1749054633864,-440.0,0.00016438,2]
[364271167,1749054633878,-684.7,0.00016438,2]
[364271168,1749054633891,-430.0,0.00016438,2]
[364271169,1749054633906,-430.0,0.00016438,2]
[364271170,1749054633920,-501.71,0.00016438,2]
[364271171,1749054633934,-430.0,0.00016438,2]
[364271172,1749054633946,-440.0,0.00016712,2]
[364271173,1749054633956,-420.0,0.00016712,2]
[364271174,1749054633968,-440.0,0.00016712,2]
[364271175,1749054633982,-202.5902681,0.00016712,2]
[364271176,1749054633994,-440.0,0.00016712,2]
[364271177,1749054634009,-440.0,0.00016712,2]
[364271178,1749054634023,-363.8017678,0.00016712,2]